Cogmind - Beta 16 @@@ ROGUE MODE // 2025.12.02 @ 16:20:22 Player: Decree0327 Result: Destroyed by G-34 Mercenary with Small Laser Performance ------------- Evolutions (1) 500 Regions Visited (3) 600 Robots Destroyed (9) 45 Value Destroyed (167) 167 Prototype IDs (0) 0 Alien Tech Used (0) 0 Bonus (0) 0 TOTAL SCORE: 1312 Bonus ------- None Cogmind --------- Core Integrity 0/400 Matter 283/300 Energy 264/265 System Corruption 1% Temperature Cool (6) Movement Rolling (115) Ox1 Location -9/Materials Parts ------- > --- POWER (1) -------- Improved Ion Engine > --- PROPULSION (2) --- Light Treads Compact Wheel > --- UTILITY (4) ------ Heat Sink Medium Storage Unit Seismic Detector Authchip [R/Combat] > --- WEAPON (2) ------- Shotgun Mining Claw > --- INVENTORY (10) --- Wheel Medium Matter Pod (100) EMP Trap EMP Trap Peak State ------------ > --- POWER ------------ Light Ion Engine > --- PROPULSION ------- Compact Wheel Compact Wheel > --- UTILITY ---------- Medium Storage Unit Improved Terrain Scanner Seismic Detector Authchip [R/Combat] > --- WEAPON ----------- Light Assault Rifle Light Assault Rifle > --- INVENTORY -------- Light Ion Engine Light Treads Wheel Compact Wheel Medium Matter Pod Light Armor Plating EMP Trap EMP Trap [Rating: 14] Favorites ----------- Power Light Ion Engine Engine Light Ion Engine Propulsion Compact Wheel Treads Light Treads Wheel Compact Wheel Utility Seismic Detector Device Seismic Detector Storage Small Storage Unit Hackware Authchip [R/Combat] Protection Light Armor Plating Weapon Light Assault Rifle Energy Gun Medium Laser Ballistic Gun Light Assault Rifle Slashing Weapon Mining Claw Build | -11 -10 -10 -9 ------- Run | Yrd Mat Min Mat Slots Evolved 2 | . . . 2 Power . | . . . . Propulsion . | . . . . Utility 2 | . . . 2 Weapon . | . . . . Parts Attached 22 | 8 1 2 11 Power 3 | 1 . . 2 Engine 3 | 1 . . 2 Core . | . . . . Reactor . | . . . . Propulsion 5 | 2 . . 3 Treads 2 | . . . 2 Leg . | . . . . Wheel 3 | 2 . . 1 Hover . | . . . . Flight . | . . . . Utility 9 | 3 1 1 4 Device 5 | 2 1 . 2 Storage 2 | 1 . 1 . Processor . | . . . . Hackware 1 | . . . 1 Protection 1 | . . . 1 Artifact . | . . . . Weapon 5 | 2 . 1 2 Energy Gun 1 | 1 . . . Energy Cannon . | . . . . Ballistic Gun 3 | 1 . 1 1 Ballistic Cannon . | . . . . Launcher . | . . . . Special Weapon . | . . . . Impact Weapon . | . . . . Slashing Weapon 1 | . . . 1 Piercing Weapon . | . . . . Special Melee Weapon . | . . . . Unidentified Prototypes . | . . . . Parts Lost 8 | . . . 8 Power 2 | . . . 2 Propulsion 2 | . . . 2 Utility 2 | . . . 2 Weapon 2 | . . . 2 Highest Loss Streak 8 | . . . 8 To Critical Strikes . | . . . . Average Backups 5 | 3 6 6 3 Power . | . 1 1 . Propulsion 2 | 1 3 3 1 Utility 1 | . 1 2 1 Weapon . | 1 1 . . Tool/Special . | . . . . Unused Backups 5 | 1 1 . 3 Power 1 | 1 . . . Propulsion 2 | . . . 2 Utility 1 | . . . 1 Weapon 1 | . 1 . . Tool/Special . | . . . . Average Slot Usage (%) 94 | . 100 100 86 Engine 12 | . 14 14 10 Treads 3 | . . . 8 Wheel 20 | . 28 28 10 Device 16 | . 14 14 20 Storage 12 | . 14 14 11 Hackware 4 | . . . 10 Energy Gun 1 | . 14 1 . Ballistic Gun 18 | . 14 26 9 Slashing Weapon 2 | . . . 6 Peak Build Rating 14 | 9 7 8 14 Average Rating 9 | 6 7 7 12 On Entrance 6 | . 9 7 8 Avg Prop Armor Cover (%) 15 | . . . 15 Naked Turns . | . . . . Heaviest Build 24 | 12 12 16 24 Greatest Support 32 | 32 32 32 32 Greatest Overweight (x) 4 | 1 . . 4 Average Overweight (x) . | . . . . Largest Inventory Capacity 10 | 8 8 10 10 Average Capacity 8 | 7 8 8 10 Most Carried 10 | 7 7 10 9 Average Carried 6 | 4 6 8 5 Final Capacity 10 | 8 8 10 10 Final Carried 10 | 7 7 10 4 Class Distribution -------------------- 76% | Mutant 23% | Scavenger-Mutant Dominant Class ---------------- Mutant | -10/Materials Mutant | -10/Mines Scavenger-Mutant | -9/Materials Resources | -11 -10 -10 -9 ----------- Run | Yrd Mat Min Mat Matter Collected 572 | 288 . 152 132 Remotely . | . . . . Salvage Created 300 | 121 . 31 148 Parts 24 | 13 . 3 8 Haulers Intercepted . | . . . . Recyclers Shooed . | . . . . Parts Field Recycled . | . . . . Retrieved Matter . | . . . . Parts Self-Destructed . | . . . . Prevented . | . . . . Parts Restored . | . . . . Kills | -11 -10 -10 -9 ------- Run | Yrd Mat Min Mat Combat Hostiles Destroyed 5 | . . 2 3 Guns 5 | . . 2 3 Classes Destroyed 7 | 3 . 1 3 Worker 1 | 1 . . . Tunneler 2 | 2 . . . Recycler 1 | 1 . . . Swarmer 2 | . . 2 . Grunt 1 | . . . 1 Duelist 1 | . . . 1 Sentry 1 | . . . 1 Best Kill Streak 2 | 2 . 2 1 Combat Bots Only 2 | . . 2 1 Max Kills in Single Turn 1 | 1 . 1 1 Gunslinging . | . . . . Exploded . | . . . . Melee . | . . . . Uniques/NPCs Destroyed . | . . . . Combat | -11 -10 -10 -9 -------- Run | Yrd Mat Min Mat Hostile Shots Fired 107 | . 6 19 82 Missed 17 | . 1 4 12 Hits 90 | . 5 15 70 Melee 4 | . . . 4 Projectile 86 | . 5 15 66 Critical Strikes 2 | . . . 2 Damage Taken 1240 | . 54 124 1062 Core 469 | . 11 58 400 Absorbed by Shields . | . . . . Core Remaining (%) 86 | 100 . 72 . Volleys Fired 53 | 8 . 11 34 Largest 2 | 2 . 2 2 Hottest 70 | 70 . 40 40 Shots Fired 82 | 16 . 22 44 Gun 82 | 16 . 22 44 Cannon . | . . . . Launcher . | . . . . Special . | . . . . Kinetic 74 | 8 . 22 44 Thermal 8 | 8 . . . Explosive . | . . . . Electromagnetic . | . . . . Robot Hit Streak 21 | 11 . 12 21 Robot Miss Streak 2 | 2 . 2 1 Penetration Max . | . . . . Secondary Targets 1 | . . 1 . Max Gunslinging Chain 1 | . . 1 . Shots Hit Robots 66 | 11 . 12 43 Core Hits 22 | 7 . 4 11 Critical Kills . | . . . . Critical Parts Destroyed . | . . . . Critical Strikes 1 | 1 . . . Burn 1 | 1 . . . Melee Attacks 11 | . . . 11 Impact . | . . . . Slashing 11 | . . . 11 Piercing . | . . . . Sneak Attacks . | . . . . Combat Hostiles . | . . . . Follow-up Attacks . | . . . . Damage Inflicted 606 | 111 . 103 392 Guns 536 | 111 . 103 322 Cannons . | . . . . Explosions . | . . . . Melee 70 | . . . 70 Ramming . | . . . . Kinetic 460 | 35 . 103 322 Thermal 76 | 76 . . . Explosive . | . . . . Electromagnetic . | . . . . Impact . | . . . . Slashing 70 | . . . 70 Piercing . | . . . . Highest Corruption 1 | . . . 1 Average Corruption 1 | . . . 1 Corruption Purged . | . . . . Corruption Blocked . | . . . . Effects 3 | . . . 3 Message Errors 1 | . . . 1 Heat Flow Errors 1 | . . . 1 Data Loss (minor) 1 | . . . 1 Overload Shots . | . . . . Overflow Damage . | . . . . Projectiles . | . . . . Explosions . | . . . . Melee . | . . . . Knockbacks . | . . . . Impact . | . . . . Kinetic . | . . . . Secondary . | . . . . Self-Inflicted Damage . | . . . . Shots . | . . . . Rammed . | . . . . Targets Rammed . | . . . . Kicked . | . . . . Crushed . | . . . . Highest Temperature 108 | 80 . . 108 Average Temperature 23 | 29 . . 16 Received Heat Transfer 378 | . 30 . 348 Siege Activations . | . . . . Martial Activations . | . . . . Shielding Activations . | . . . . Robots Disrupted . | . . . . Combat Hostiles . | . . . . Robots Corrupted . | . . . . Combat Hostiles . | . . . . Parts Fried . | . . . . Impact Corruptions . | . . . . Robots Melted . | . . . . Combat Hostiles . | . . . . Parts Melted . | . . . . Heat Transferred 296 | 296 . . . Parts Sabotaged . | . . . . Parts Stolen . | . . . . Parts Stripped . | . . . . Power Chain Reactions . | . . . . Alert | -11 -10 -10 -9 ------- Run | Yrd Mat Min Mat Maximum Alert Level . | . . . . Low Security (%) 100 | 100 100 100 100 Level 1 . | . . . . Level 2 . | . . . . Level 3 . | . . . . Level 4 . | . . . . Level 5 . | . . . . High Security . | . . . . Max Security . | . . . . Peak Influence 87 | 5 3 87 50 Initial 8 | . 3 . 8 Average 10 | . 1 16 6 Influence Increases 215 | 20 . 95 100 Destroy 0b10 Robot/C 100 | . . 40 60 Destroy 0b10 Robot/NC 20 | 20 . . . Destroy Leader 30 | . . 10 20 Destroy Structure 5 | . . . 5 Lose Combat Pursuer 60 | . . 45 15 Influence Decreases 207 | 15 5 72 115 Entered New Map 17 | . 2 . 15 Time Decay 150 | 15 3 72 60 Lost Part 40 | . . . 40 Squads Dispatched 2 | . 1 . 1 Investigation . | . . . . Extermination . | . . . . Reinforcement 2 | . 1 . 1 Assault . | . . . . Garrison . | . . . . Intercept . | . . . . Searches Triggered . | . . . . Construction Impeded . | . . . . Haulers Reinforced . | . . . . Active Scanning Responses . | . . . . Cargo Convoy Interrupts . | . . . . Stealth | -11 -10 -10 -9 --------- Run | Yrd Mat Min Mat Distress Signals . | . . . . Communications Jammed . | . . . . Distress Signals . | . . . . Times Spotted 17 | . 3 5 9 Peak Tracking Total 4 | . 2 3 4 Tactical Retreats 3 | . . 2 1 Traps | -11 -10 -10 -9 ------- Run | Yrd Mat Min Mat Traps Triggered . | . . . . Indirectly . | . . . . Trap Hack Attempts . | . . . . Triggered . | . . . . Disarmed . | . . . . Reprogrammed . | . . . . Reused . | . . . . Traps Extracted . | . . . . Installed . | . . . . Triggered . | . . . . Most Traps Carried 2 | . . 2 2 Machines | -11 -10 -10 -9 ---------- Run | Yrd Mat Min Mat Machines Disabled . | . . . . Max in Single Turn . | . . . . Machines Repaired . | . . . . Machines Dismantled . | . . . . Machines Sabotaged . | . . . . Overloaded Fab Kills . | . . . . Hacking | -11 -10 -10 -9 --------- Run | Yrd Mat Min Mat Machines Accessed 4 | . 2 . 2 Terminals 2 | . 1 . 1 Fabricators . | . . . . Repair Stations 1 | . . . 1 Recycling Units 1 | . 1 . . Scanalyzers . | . . . . Garrison Access . | . . . . Total Hacks 16 | . 8 . 8 Successful 5 | . 3 . 2 Failed 11 | . 5 . 6 Catastrophic 2 | . 1 . 1 Database Lockouts . | . . . . Manual 7 | . 3 . 4 Terminals 8 | . 3 . 5 Fabricators . | . . . . Repair Stations 3 | . . . 3 Recycling Units 5 | . 5 . . Scanalyzers . | . . . . Garrison Access . | . . . . Terminal Hacks 1 | . . . 1 Record 1 | . . . 1 Fabricator Hacks . | . . . . Repair Station Hacks 1 | . . . 1 Scan Component 1 | . . . 1 Recycling Unit Hacks 3 | . 3 . . Recycle Component 1 | . 1 . . Process 1 | . 1 . . Report Inventory 1 | . 1 . . Scanalyzer . | . . . . Garrison Access Hacks . | . . . . Unauthorized Hacks . | . . . . Terminals . | . . . . Fabricators . | . . . . Repair Stations . | . . . . Recycling Units . | . . . . Scanalyzers . | . . . . Garrison Access . | . . . . Data Cores Recovered . | . . . . Used . | . . . . Hacking Detections 4 | . 2 . 2 Full Trace Events 3 | . 1 . 2 Feedback Events . | . . . . Feedback Blocked . | . . . . Robot Schematics Acquired . | . . . . Robots Built . | . . . . Authchips . | . . . . Time . | . . . . Total Robot Build Rating . | . . . . Part Schematics Acquired . | . . . . Parts Built . | . . . . Authchips . | . . . . Time . | . . . . Total Part Build Rating . | . . . . Part Studies Acquired . | . . . . Parts Repaired . | . . . . Time . | . . . . Parts Recycled 1 | . 1 . . Recycled Matter . | . . . . Retrieved Matter . | . . . . Retrieved Components . | . . . . Parts Scanalyzed . | . . . . Part Schematics Acquired . | . . . . Parts Damaged . | . . . . Bothacking | -11 -10 -10 -9 ------------ Run | Yrd Mat Min Mat Used RIF Installer . | . . . . Robots Hacked . | . . . . Non-combat . | . . . . Combat . | . . . . Robot Hacks Applied . | . . . . Relay Couplers Released . | . . . . Fabnet Peak Effective % . | . . . . Robots Rewired . | . . . . Allies Hacked . | . . . . Hacks Repelled . | . . . . Allies | -11 -10 -10 -9 -------- Run | Yrd Mat Min Mat Total Allies . | . . . . Largest Group . | . . . . Highest-Rated Group . | . . . . Highest-Rated Ally . | . . . . Total Orders . | . . . . Ally Attacks . | . . . . Total Damage . | . . . . Kills . | . . . . Allies Corrupted . | . . . . Allies Melted . | . . . . Intel | -11 -10 -10 -9 ------- Run | Yrd Mat Min Mat Active Infowar (turns) 1097 | 44 52 589 412 Terrain 221 | 44 . . 177 Seismic 1008 | . 52 589 367 Robot Analysis Total . | . . . . Derelict Logs Recovered . | . . . . Drone Launches . | . . . . Drone Recoveries . | . . . . Exploration | -11 -10 -10 -9 ------------- Run | Yrd Mat Min Mat Turns Passed 1185 | 106 52 589 438 Spaces Moved 828 | 65 50 471 242 Core 9 | 8 . . 1 Treads 16 | . . . 16 Legs . | . . . . Wheels 803 | 57 50 471 225 Hover . | . . . . Flight . | . . . . Fastest Speed 50 | 50 100 100 100 Average Speed 104 | 96 100 100 116 Slowest Speed 250 | 100 100 100 250 Overloaded Moves . | . . . . Propulsion Burnouts . | . . . . Robots Hopped . | . . . . Potential Cave-ins . | . . . . Cave-ins Triggered . | . . . . Exploration Rate (%) 31 | 5 14 84 24 Regions Visited 3 Branch Regions 1 Pre-discovered Areas . | . . . . Known Exits Taken . | . . . . Unknown Exits Taken 3 | 1 1 1 . Scrap Searched 1 | . . 1 . Spaces Dug 5 | . . . 5 Terrain Destroyed 5 | . . . 5 Melee 5 | . . . 5 Projectile . | . . . . AOE . | . . . . Terrain Rammed . | . . . . Walls Destroyed . | . . . . Machines Disabled . | . . . . Actions | -11 -10 -10 -9 --------- Run | Yrd Mat Min Mat Total 1055 | 92 51 571 341 Wait 119 | . . 82 37 Move 825 | 64 49 470 242 Hop . | . . . . Pick Up 17 | 10 1 4 2 Fast Attach 11 | 6 . . 5 Attach 9 | 2 . . 7 Detach . | . . . . Swap 4 | . 1 2 1 Drop 6 | 2 . 2 2 Fire 53 | 8 . 11 34 Melee 11 | . . . 11 Ram . | . . . . Kick . | . . . . Crush . | . . . . Escape Stasis . | . . . . Rewire . | . . . . Trap . | . . . . Miscellaneous . | . . . . Route ------- -11/Scrapyard -10/Materials -10/Mines (discovered 2 exits: *Mat x2) -9/Materials History --------- Turn | Location | Event 12 | -11/Scrapyard | Discovered new exit (range 15) 107 | -11/Scrapyard | Entered Materials 137 | -10/Materials | Discovered new exit (range 16) 159 | -10/Materials | Entered Mines 166 | -10/Mines | Discovered new exit (range 4) 175 | -10/Mines | Met a Derelict bent on vengeance 210 | -10/Mines | Found a hidden stash of uninstalled traps 316 | -10/Mines | Build established: Mutant 739 | -10/Mines | Discovered new exit (range 9) 748 | -10/Mines | Entered Materials 748 | -9/Materials | Evolved 2 slots: Utility x2 889 | -9/Materials | Core integrity fell below 50% 916 | -9/Materials | Core integrity fell below 20% 956 | -9/Materials | Lost 8 parts (2p2n2u2w) 1186 | -9/Materials | Destroyed by G-34 Mercenary with Small Laser Last Messages --------------- Time: 32 01066_ K-01 Serf collects debris. 01095_ K-01 Serf cleans the Nuclear Reactor. 01103_ Acquired Shotgun. 01134_ 8C2VMPSW/BEG/FTFOOZSBBPXWMWW 01154_ K-01 Serf cleans the TF Node. 01156_ O-16 Technician: "IFF HANDSHAKE FAILED. SECURING TERMINAL." 01160_ ALERT: Hostiles spotted, dispatching reinforcements to Terminal M002. 01161_ Connecting with Terminal... >>Query(Scanalyzer) Comprehensive suite of scanning and analysis tools for diagnosing faulty prototypes, examining the properties of self-developed [Derelict] components, and reverse engineering technology recovered from the surface battle site. Capable of producing schematics for components scanned, though multiple scans may be required and the deconstruction process may render the component itself useless. Advanced scanalyzers are equipped with a wider array of devices for more quickly and safely analyzing esoteric technologies. 01171_ System corrupted: Component data lost. Map ----- +----------------------------------------------------+ | ????????????????# """ ## #????????? "????""??? | | ????????????????# """ ## ##???????? ????????? | | ????????????????# """ # #???????? ????????? | | ????????????????# # " #???????? ????????? | | ????????????????#########" #???????? ????????? | | ???????????????????######## ##???????????????????? | | ???????????????????# # #????????????????????? | | ???????????????????# # ###??????????????????? | | ???????????????????# """ # #????? ????????????? | | ???????????????????# """ + #???? ?????????????? | | ???????????????????# """ # #??? ?????????????? | | ???????????????????# # #?? ?????????????? | | ???????????????????# "T" # #?""" ?????????????? | | ???????????# ????# # # """ ?????????????? | | ???????????# ######"## # """ ?????????????? | | ???????? + ????????????????? | | ???????? # ?????????????????? | | ???????? # ????????????????? | | ?????????###+################g###????????????????? | | ??????????????????????# #?????????????????? | | ??????????????????????# #?????????????????? | | ??????????????????????# +?????????????????? | | ??????????????????????# #?????????????????? | | ??????????????????????# #?????????????????? | | ??????????????????????# #?????????????????? | | ??????????????????????# @ #?????????????????? | | ??????????????????????# #?????????????????? | | ??????????????????????# #?????????????????? | | ??????????????????????##+####+##?????????????????? | | ?????????????????????????????????????????????????? | | ?????????????????????????????????????????????????? | | ?????????????????????????????????????????????????? | | ?????????????????????????????????????????????????? | | ?????????????????????????????????????????????????? | | ?????????????????????????????????????????????????? | | ?????????????????????????????????????????????????? | | ?????????????????????????????????????????????????? | | ?????????????????????????????????????????????????? | | ?????????????????????????????????????????????????? | | ?????????????????????????????????????????????????? | | ?????????????????????????????????????????????????? | | ?????????????????????????????????????????????????? | | ?????????????????????????????????????????????????? | | ?????????????????????????????????????????????????? | | ?????????????????????????????????????????????????? | | ?????????????????????????????????????????????????? | | ?????????????????????????????????????????????????? | | ?????????????????????????????????????????????????? | | ?????????????????????????????????????????????????? | | ?????????????????????????????????????????????????? | +----------------------------------------------------+ Best States ------------- Heat Dissipation 48 Energy Generation 12 Energy Capacity 265 Matter Stores 300 Matter Capacity 300 Sight Range 16 Terrain Scan Range 16 Terrain Scan Density 10 Evasion (%) 40 Recoil Reduction 1 Authchip Count 1 Item Schematics ----------------- None Robot Schematics ------------------ None Fabricated ------------ Nothing Repaired ---------- Nothing Studied --------- None Alien Tech Used ----------------- None Achievements -------------- None Challenges ------------ None Game ------ Seed RestorationEnergyEngine Manual? 0 Play Time 00:16:35 Cumulative 20.2 hours Start 2025.12.02 @ 16:06:26 End 2025.12.02 @ 16:20:22 Sessions 1 Manual Loads 0 Difficulty Rogue Special Mode None Game No. 17 Rogue 8 Adventurer 8 Explorer 1 Win Type - Total 0 Types 0/0/0/0/0/0/0/0/0/0 Lore% 6 Gallery% 23 Achievement% 18 Wizard Run 0 Options --------- Layout 1 ASCII 0 Keyboard 0 Movement Numpad Keybinds 0 Fullscreen 1 Font 32/SmallcapsGlow Map View 77x35 Zoom Use 0% Tactical HUD 1 Map Filters NONE Filters NONE Steam 1 RUN: 1f11cb5c-e443-44ce-a307-c260d2d419a2